bitfinex-derivatives/quotes_SOLF0:USTF0_20260107
["timestamp","ask_amount","ask_price","bid_price","bid_amount"]
[1767767902978,85.18,138.91,138.83,0.31102798]
[1767767903272,85.18,138.91,138.83,6.79772798]
[1767767903476,85.18,138.91,138.84,0.31102798]
[1767767910693,1.74161133,138.9,138.84,0.31102798]
[1767767917198,1.74161133,138.9,138.83,6.4867]
[1767767917793,1.74161133,138.9,138.83,6.81835863]
[1767767919398,1.74161133,138.9,138.84,0.33165863]
[1767767919599,8.22451133,138.92,138.84,0.33165863]
[1767767922299,1.74161133,138.92,138.85,0.33165863]
[1767767923802,1.74161133,138.92,138.85,6.81745863]
[1767767924301,1.74161133,138.9,138.83,6.81835863]
[1767767924901,1.74161133,138.9,138.84,0.33165863]
[1767767926400,1.74161133,138.89,138.84,0.33165863]
[1767767926907,1.74161133,138.89,138.85,0.33165863]
[1767767927210,1.74161133,138.91,138.85,0.33165863]
[1767767928305,1.74161133,138.91,138.85,6.81755863]
[1767767928902,1.74161133,138.89,138.85,6.81755863]
[1767767930206,1.74161133,138.89,138.85,0.33165863]
[1767767930408,1.74161133,138.89,138.83,0.33165863]
[1767767931609,1.74161133,138.91,138.84,0.33165863]
[1767767932705,1.74161133,138.91,138.84,6.81785863]
[1767767932906,1.74161133,138.91,138.85,0.33165863]
[1767767934512,9.20136289,138.93,138.85,0.33165863]
[1767767935612,6.4816,138.95,138.86,0.33165863]
[1767767936701,6.4816,138.95,138.87,6.81635863]
[1767767937213,6.4816,138.95,138.88,0.33165863]
[1767767939606,2.71876289,138.96,138.89,0.31672372]
[1767767940010,2.71876289,138.96,138.88,6.80112372]
[1767767943514,6.4807,138.97,138.89,0.33205985]
[1767767944513,89.0920266,138.98,138.9,0.33205985]
[1767767944713,85.12,138.98,138.9,0.33205985]
[1767767945615,91.6001,138.98,138.9,0.33205985]
[1767767946817,94.31886289,138.98,138.9,0.33205985]
[1767767947419,6.4806,138.97,138.88,0.33205985]
[1767767950220,6.4806,138.97,138.88,6.81645985]
[1767767950614,9.19976289,138.96,138.88,0.33205985]
[1767767950815,2.71876289,138.96,138.86,0.33205985]
[1767767951622,6.4815,138.95,138.87,0.33205985]
[1767767952815,6.4815,138.95,138.87,6.81685985]
[1767767957429,6.4815,138.95,138.88,0.33205985]
[1767767957828,6.4807,138.97,138.88,0.33205985]
[1767767958230,6.4807,138.97,138.88,6.81655985]
[1767767960529,6.481,138.96,138.88,6.81655985]
[1767767967731,6.481,138.96,138.89,0.33205985]
[1767767968830,2.71876289,139.01,138.9,0.33205985]
[1767767969034,87.81876289,139.01,138.9,0.33205985]
[1767767970521,6.4793,139.0,138.91,6.483]
[1767767970725,6.4793,139.0,138.92,0.33205985]
[1767767974939,9.19836289,138.99,138.92,0.33205985]
[1767767976840,6.48,138.98,138.9,0.31435001]
[1767767977036,2.71876289,138.97,138.9,0.31435001]
[1767767979538,6.48,138.98,138.91,0.31435001]
[1767767980441,6.4791,139.0,138.92,0.31435001]
[1767767982544,6.4791,139.0,138.93,0.31435001]
[1767767986655,87.81876289,139.01,138.94,0.31435001]
[1767767986948,85.1,139.01,138.94,0.31435001]
[1767767988657,87.81876289,139.01,138.94,0.31435001]
[1767767990749,94.29746289,139.01,138.94,0.31435001]
[1767767993847,6.4791,139.0,138.94,0.31435001]
[1767767994047,6.4791,139.0,138.92,0.31435001]
[1767767996656,1.73806881,138.98,138.92,0.31435001]
[1767768000470,1.73806881,138.99,138.92,0.31435001]
[1767768002476,8.21716881,139.0,138.92,6.79695001]
[1767768004174,1.73806881,138.98,138.92,6.79695001]
[1767768005073,1.73806881,138.98,138.9,6.78580989]
[1767768005280,85.1,139.01,138.9,6.78580989]
[1767768005281,1.73806881,138.96,138.9,6.78580989]
[1767768008071,8.21806881,138.98,138.91,0.30250989]
[1767768012276,8.21736881,139.0,138.92,0.30250989]
[1767768013672,1.73806881,139.0,138.93,0.30250989]
[1767768014582,1.73806881,139.0,138.93,6.78460989]
[1767768016786,1.73806881,139.0,138.93,0.30250989]
[1767768020991,8.21716881,139.0,138.93,0.30250989]
[1767768024079,1.73806881,139.0,138.93,0.30250989]
[1767768024491,1.73806881,139.0,138.93,6.78460989]
[1767768024979,1.73806881,139.0,138.91,6.78530989]
[1767768025182,1.73806881,138.98,138.91,6.78530989]
[1767768027891,1.73806881,138.98,138.92,0.30250989]
[1767768029898,1.73806881,138.94,138.89,6.4839]
[1767768030191,1.73806881,138.94,138.89,6.78640989]
[1767768031595,1.73806881,138.94,138.89,0.30250989]
[1767768031995,5.39905209,138.93,138.89,0.30250989]
[1767768032196,5.39905209,138.92,138.89,0.30250989]
[1767768032398,1.73806881,138.94,138.89,0.30250989]
[1767768032588,5.39786162,138.93,138.89,0.30250989]
[1767768032895,5.39786162,138.92,138.89,0.30250989]
[1767768033095,1.73806881,138.96,138.89,0.30250989]
[1767768033292,5.39688544,138.95,138.89,0.30250989]
[1767768033494,5.39688544,138.94,138.89,0.30250989]
[1767768033688,5.39688544,138.93,138.89,0.30250989]
[1767768033894,5.39688544,138.92,138.89,0.30250989]
[1767768034092,1.73806881,138.96,138.89,0.30250989]
[1767768034291,5.3960693,138.95,138.89,0.30250989]
[1767768034492,5.3960693,138.94,138.89,0.30250989]
[1767768034697,5.3960693,138.93,138.89,0.30250989]
[1767768034995,5.3960693,138.92,138.89,0.30250989]
[1767768035192,1.73806881,138.96,138.89,0.30250989]
[1767768035392,1.73806881,138.94,138.89,0.30250989]
[1767768035698,5.39544897,138.93,138.89,0.30250989]
[1767768035902,5.39544897,138.92,138.89,0.30250989]
[1767768036200,1.73806881,138.94,138.89,0.30250989]
[1767768036390,5.39493457,138.93,138.89,0.30250989]
[1767768036698,3.05883983,138.92,138.89,0.30250989]
[1767768036888,2.06291085,138.96,138.89,0.30250989]
[1767768037787,0.32484204,138.95,138.89,6.78630989]
[1767768039394,0.32484204,138.93,138.87,6.75548282]
[1767768053805,0.32484204,138.93,138.87,0.27068282]
[1767768054006,2.06291085,138.92,138.87,0.27068282]
[1767768054201,2.06291085,138.92,138.86,91.5653]
[1767768056517,2.06291085,138.92,138.86,91.83598282]
[1767768056518,0.32484204,138.92,138.86,91.83598282]
[1767768061823,0.32484204,138.92,138.86,6.75598282]
[1767768065331,0.32484204,138.92,138.86,0.27068282]
[1767768077335,6.4815,138.95,138.87,0.27053591]
[1767768077543,0.3082788,138.94,138.87,0.27053591]
[1767768077836,0.3082788,138.99,138.9,2.71830037]
[1767768078036,0.3082788,138.99,138.92,0.27053591]
[1767768081338,0.3082788,138.98,138.9,0.27053591]
[1767768081843,0.3082788,138.97,138.9,0.27053591]
[1767768082638,0.3082788,138.96,138.88,91.85493591]
[1767768082835,0.3082788,138.96,138.89,0.27053591]
[1767768111568,0.32314353,138.95,138.89,0.27053591]
[1767768111775,0.32314353,138.95,138.87,6.75524915]
[1767768112468,0.32314353,138.95,138.88,0.27034915]
[1767768112771,0.32314353,138.94,138.88,0.27034915]
[1767768135584,0.30385479,138.96,138.88,0.27034915]
[1767768135883,0.30385479,138.96,138.89,0.27046566]
[1767768137587,0.30385479,138.95,138.89,0.27046566]
[1767768137781,1.7387721,138.94,138.87,9.18993233]
[1767768137986,0.30385479,138.93,138.87,9.18993233]
[1767768138377,5.41023342,138.92,138.87,9.18993233]
[1767768138578,5.41023342,138.91,138.87,9.18993233]
[1767768138785,5.41023342,138.9,138.87,9.18993233]
[1767768138986,0.30385479,138.93,138.87,9.18993233]
[1767768139185,5.41023342,138.92,138.87,9.18993233]
[1767768139385,5.41023342,138.91,138.87,9.18993233]
[1767768139582,5.41023342,138.9,138.87,9.18993233]
[1767768139782,0.30385479,138.93,138.87,9.18993233]
[1767768140389,5.41049223,138.92,138.87,9.18993233]
[1767768140585,5.41049223,138.91,138.87,9.18993233]
[1767768140789,5.41049223,138.9,138.88,0.27046566]
[1767768140990,8.52482689,138.94,138.88,0.27046566]
[1767768141184,5.41064224,138.93,138.88,0.27046566]
[1767768141382,5.41064224,138.92,138.88,0.27046566]
[1767768141582,5.41064224,138.91,138.88,0.27046566]
[1767768141783,5.41064224,138.9,138.88,0.27046566]
[1767768142085,8.52482689,138.94,138.88,0.27046566]
[1767768142282,5.41081988,138.93,138.88,0.27046566]
[1767768142482,5.41081988,138.92,138.88,0.27046566]
[1767768142696,5.41081988,138.91,138.88,0.27046566]
[1767768142892,0.30385479,138.95,138.88,0.27046566]
[1767768155697,0.30385479,138.95,138.88,9.18993233]
[1767768158191,0.30385479,138.95,138.88,0.27046566]
[1767768159801,0.30385479,138.95,138.88,6.75496566]
[1767768166507,0.30385479,138.95,138.89,6.484]
[1767768171414,0.30070927,138.94,138.87,6.4847]
[1767768172601,5.45783551,138.93,138.87,6.4847]
[1767768172914,5.45783551,138.92,138.87,6.4847]
[1767768173208,3.551e-05,138.91,138.87,6.4847]
[1767768173414,0.30070927,138.94,138.87,6.4847]
[1767768180720,0.30070927,138.94,138.88,85.1]
[1767768181220,0.30070927,138.94,138.87,6.4847]
[1767768181514,0.30070927,138.94,138.88,85.1]
[1767768181722,0.30070927,138.94,138.87,85.1]
[1767768184620,0.30070927,138.94,138.87,91.5849]
[1767768185016,5.49913133,138.93,138.87,91.5849]
[1767768185217,5.49913133,138.92,138.87,91.5849]
[1767768185416,5.49913133,138.91,138.87,91.5849]
[1767768185717,3.133e-05,138.9,138.87,91.5849]
[1767768185917,0.30070927,138.94,138.87,91.5849]
[1767768192825,0.30838225,138.92,138.83,13.44770081]
[1767768193031,0.30838225,138.94,138.83,100.9072]
[1767768194532,0.30838225,138.93,138.85,6.4858]
[1767768194734,0.30838225,138.93,138.86,85.1]
[1767768195238,0.30838225,138.92,138.86,85.1]
[1767768203130,0.30838225,138.92,138.83,6.4866]
[1767768203333,0.30838225,138.91,138.8,13.44770081]
[1767768203642,0.30838225,138.91,138.81,85.1]
[1767768204742,6.79268225,138.89,138.81,85.1]
[1767768207545,6.79318225,138.88,138.78,6.4891]
[1767768207745,6.79318225,138.88,138.79,85.12]
[1767768209045,6.79318225,138.88,138.79,91.6086]
[1767768211944,6.78612379,138.9,138.79,87.83681337]
[1767768213548,6.78612379,138.9,138.81,6.4877]
[1767768214548,0.30232379,138.9,138.82,6.4873]
[1767768217254,0.30232379,138.9,138.83,6.4868]
[1767768217551,0.30232379,138.92,138.81,103.63671337]
[1767768218552,0.30232379,138.92,138.84,6.4862]
[1767768223861,0.30232379,138.92,138.85,6.4858]
[1767768224762,85.42232379,138.94,138.86,6.4852]
[1767768225266,0.30232379,138.93,138.86,6.4852]
[1767768225855,0.30232379,138.93,138.83,100.9029]
[1767768226157,0.30232379,138.93,138.84,91.6061]
[1767768230464,0.30232379,138.93,138.85,6.4859]
[1767768234560,6.78472379,138.93,138.85,6.4859]
[1767768236568,0.30232379,138.91,138.83,6.4865]
[1767768236771,0.30232379,138.91,138.82,85.12]
[1767768237669,0.30232379,138.91,138.84,6.4863]
[1767768238767,0.30232379,138.93,138.85,6.4859]
[1767768240469,2.04184309,138.93,138.85,6.4859]
[1767768245674,0.30303227,138.92,138.85,6.4859]
[1767768247473,2.04255157,138.92,138.85,6.4859]
[1767768259181,0.30303227,138.91,138.85,6.4859]
[1767768268500,1.7395193,138.92,138.85,6.4859]
[1767768270905,2.04255157,138.92,138.85,6.4859]
[1767768274305,2.04255157,138.92,138.83,104.98141769]
[1767768285927,0.30708631,138.91,138.83,19.86141769]
[1767768286128,0.30708631,138.91,138.84,85.12]
[1767768288825,0.30708631,138.91,138.84,91.6063]
[1767768291232,1.7395193,138.88,138.82,6.487]
[1767768300531,6.4833,138.91,138.8,85.12]
[1767768300532,0.30592825,138.91,138.83,6.4867]
[1767768300733,0.30592825,138.91,138.8,186.0455]
[1767768300734,2.04544755,138.91,138.81,116.03333699]
[1767768302735,0.30592825,138.91,138.84,6.4863]
[1767768302930,0.30592825,138.91,138.84,91.6063]
[1767768316939,6.4829,138.92,138.84,91.6063]
[1767768317446,6.81102846,138.92,138.84,91.6063]
[1767768327463,85.44812846,138.94,138.84,186.017]
[1767768328563,85.44812846,138.94,138.87,6.4848]
[1767768331065,0.32812846,138.93,138.85,6.4859]
[1767768336870,0.32498275,138.92,138.85,91.6059]
[1767768341374,0.32498275,138.92,138.84,85.12]
[1767768341968,0.32498275,138.92,138.84,91.6063]
[1767768346873,0.32498275,138.91,138.84,6.4863]
[1767768347073,0.32498275,138.91,138.84,91.6063]
[1767768358890,0.32498275,138.91,138.84,6.4863]
[1767768359089,0.32498275,138.91,138.84,91.6063]
[1767768362491,2.06488084,138.91,138.84,91.6063]
[1767768369893,0.32498275,138.91,138.84,91.6063]
[1767768377404,0.32639209,138.93,138.85,6.4858]
[1767768378704,93.34169809,138.94,138.85,6.4858]
[1767768378904,93.66809018,138.94,138.85,6.4858]
[1767768380106,0.32639209,138.93,138.85,6.4858]
[1767768388916,0.32639209,138.95,138.85,102.63259809]
[1767768389111,0.32639209,138.97,138.89,1.73989809]
[1767768389306,0.32639209,138.97,138.89,86.85989809]
[1767768390313,2.06629018,138.97,138.89,85.12]
[1767768390721,2.06629018,138.97,138.89,91.604]
[1767768391522,2.06629018,138.97,138.9,6.4835]
[1767768391907,0.33337575,138.99,138.91,1.73989809]
[1767768392106,1.73989809,139.01,138.91,1.73989809]
[1767768392107,2.07327384,139.01,138.91,1.73989809]
[1767768393224,0.33337575,139.0,138.91,8.22279809]
[1767768393415,2.07327384,138.99,138.91,6.4829]
[1767768393615,0.33337575,138.98,138.91,6.4829]
[1767768393818,1.73989809,138.97,138.89,6.4838]
[1767768394124,1.73989809,138.97,138.89,91.5838]
[1767768397125,0.33337575,138.98,138.9,8.22319809]
[1767768397318,2.07327384,138.99,138.9,8.22319809]
[1767768399418,2.07327384,138.99,138.91,6.4827]
[1767768402034,2.07327384,138.99,138.92,6.4825]
[1767768402636,0.33337575,138.99,138.92,6.4825]
[1767768402928,0.33337575,139.01,138.93,6.4821]
[1767768403725,2.07327384,139.0,138.93,6.4821]
[1767768404724,0.33337575,139.0,138.93,6.4821]
[1767768408533,0.33337575,138.98,138.91,6.483]
[1767768409035,2.07327384,138.98,138.91,6.483]
[1767768411840,1.73989809,138.98,138.92,6.4825]
[1767768413336,0.33337575,139.0,138.92,6.4825]
[1767768413337,2.07327384,139.0,138.92,6.4825]
[1767768419928,0.33337575,139.0,138.93,6.4821]
[1767768426850,2.7148276,139.03,138.9,185.9316]
[1767768426851,6.4777,139.03,138.92,100.839]
[1767768427039,0.31860824,139.04,138.93,100.835]
[1767768428740,6.79580824,139.04,138.96,6.4807]
[1767768431048,0.31860824,139.03,138.96,6.4807]
[1767768431538,0.31860824,139.03,138.94,6.4815]
[1767768431539,0.31860824,139.01,138.94,6.4815]
[1767768434348,0.31860824,139.01,138.93,6.482]
[1767768437452,0.31860824,139.01,138.94,6.4816]
[1767768447771,0.31860824,139.01,138.92,91.5424]
[1767768449065,0.31860824,139.01,138.92,85.06]
[1767768449271,0.31860824,139.01,138.93,6.4821]
[1767768462676,6.81082147,139.02,138.93,6.4821]
[1767768463672,0.33262147,139.01,138.93,6.4821]
[1767768467382,0.33262147,139.03,138.94,6.4815]
[1767768474095,0.33262147,139.03,138.95,6.4811]
[1767768484506,2.0696901,139.03,138.95,6.4811]
[1767768485402,8.5473901,139.03,138.95,6.4811]
[1767768485705,0.30864473,139.02,138.95,6.4811]
[1767768489012,8.21476863,139.03,138.95,6.4811]
[1767768490311,1.73706863,139.03,138.95,6.4811]
[1767768490511,1.73706863,139.03,138.96,6.4807]
[1767768495917,2.04571336,139.04,138.96,6.4807]
[1767768501413,8.52291336,139.04,138.96,6.4807]
[1767768513435,0.31615419,139.03,138.96,6.4807]
[1767768532956,0.31615419,139.03,138.95,8.95221967]
[1767768533158,0.31615419,139.05,138.97,6.4801]
[1767768534163,1.73706863,139.04,138.97,6.4801]
[1767768538167,2.05322282,139.05,138.98,6.4797]
[1767768544476,0.31615419,139.05,138.98,6.4797]
[1767768546676,0.31615419,139.05,138.99,6.4793]
[1767768546876,0.30170999,139.06,138.99,6.4793]
[1767768555779,2.71313288,139.07,138.99,6.4793]
[1767768556786,3.01484287,139.07,138.99,6.4793]
[1767768559384,0.30170999,139.07,138.99,6.4793]
[1767768564488,6.77750999,139.07,138.99,6.4793]
[1767768564680,0.30170999,139.06,138.99,6.4793]
[1767768566893,0.30170999,139.03,138.97,6.4801]
[1767768573689,2.71313288,139.04,138.97,6.4801]
[1767768574081,6.80253843,139.05,138.97,6.4801]
[1767768578495,0.32573843,139.05,138.98,6.4797]
[1767768581695,6.80163843,139.07,138.98,6.4797]
[1767768581893,0.32573843,139.06,138.98,6.4797]
[1767768586899,6.80203843,139.06,138.98,6.4797]
[1767768592403,0.32573843,139.06,138.99,6.4793]
[1767768594206,9.51447131,139.08,138.99,6.4793]
[1767768596503,6.80133843,139.08,139.0,6.4787]
[1767768597308,0.32573843,139.07,139.0,6.4787]
[1767768602708,0.32573843,139.07,138.98,8.95221967]
[1767768602912,0.33217701,139.06,138.98,100.47201967]
[1767768604517,2.0683275,139.06,138.98,100.47201967]
[1767768606213,2.0683275,139.06,138.98,91.5198]
[1767768608214,2.0683275,139.06,138.99,6.4793]
[1767768608414,2.0683275,139.08,138.98,95.72837016]
[1767768609322,2.0683275,139.08,139.0,6.4787]
[1767768609715,0.33217701,139.07,139.0,6.4787]
[1767768610924,1.73615049,139.06,139.0,6.4787]
[1767768615025,0.33217701,139.07,139.0,6.4787]
[1767768615417,1.73615049,139.06,139.0,6.4787]
[1767768617226,2.0683275,139.07,139.0,6.4787]
[1767768626934,0.33217701,139.07,139.01,6.4783]
[1767768627132,0.33217701,139.08,139.01,6.4783]
[1767768632438,2.06953012,139.1,139.02,6.4779]
[1767768633337,0.33337963,139.09,139.02,6.4779]
[1767768641846,92.76605618,139.11,139.01,100.7753]
[1767768641847,1.25195618,139.11,139.01,100.7753]
[1767768642047,1.58533581,139.11,139.02,1.73615049]
[1767768642444,0.33337963,139.05,138.99,8.95221967]
[1767768642648,0.33337963,139.05,138.95,100.8186]
[1767768642649,1.73615049,139.02,138.95,93.97221967]
[1767768642836,0.33337963,139.08,138.96,100.8136]
[1767768643040,86.27206879,139.09,138.96,100.8136]
[1767768643041,1.73615049,139.04,138.96,100.8136]
[1767768644636,1.73615049,139.04,138.98,6.4797]
[1767768650355,1.73615049,139.04,138.99,6.4792]
[1767768650857,0.33337963,139.05,138.99,6.4792]
[1767768654461,1.73615049,139.06,138.99,6.4792]
[1767768655655,1.73615049,139.06,139.0,6.4788]
[1767768657762,2.06953012,139.06,139.0,6.4788]
[1767768660664,1.73615049,139.04,138.98,6.4796]
[1767768661164,2.06427485,139.02,138.96,6.4807]
[1767768666470,0.32812436,139.02,138.96,6.4807]
[1767768680473,0.32812436,139.02,138.95,85.04]
[1767768680474,0.30647845,139.04,138.97,6.4802]
[1767768692085,6.78367845,139.04,138.95,91.521]
[1767768693288,6.77920444,139.06,138.95,93.99221967]
[1767768693679,0.30270444,139.06,138.96,100.8138]
[1767768693987,6.77830444,139.08,138.99,6.4793]
[1767768694286,6.77830444,139.08,138.99,91.5193]
[1767768699190,0.30270444,139.08,139.0,6.4788]
[1767768701287,1.25206879,139.09,139.03,6.4773]
[1767768701495,0.30270444,139.12,139.01,2.7142806]
[1767768701693,0.30270444,139.12,139.01,11.66650027]
[1767768702593,6.77640444,139.12,139.03,6.4773]
[1767768702790,6.77640444,139.12,139.04,85.04]
[1767768712912,0.30270444,139.1,139.01,6.4782]
[1767768713406,0.30270444,139.1,139.0,85.02]
[1767768714605,0.30270444,139.08,139.0,85.02]
[1767768716701,0.30270444,139.08,139.0,91.4988]
[1767768727932,1.73561523,139.09,139.01,6.4783]
[1767768728519,2.04825446,139.09,139.01,6.4783]
[1767768732823,1.73561523,139.09,139.01,6.4783]
[1767768733119,8.52265446,139.1,139.02,6.4779]
[1767768736722,0.31263923,139.09,139.02,6.4779]
[1767768737215,0.31263923,139.07,139.0,6.4788]
[1767768743622,0.31263923,139.07,138.97,109.75511967]
[1767768743829,0.31263923,139.05,138.98,85.02]
[1767768744020,0.31263923,139.05,138.97,8.95221967]
[1767768744220,1.73561523,139.04,138.97,93.97221967]
[1767768745515,1.73561523,139.04,138.97,100.45231967]
[1767768746524,0.31263923,139.05,138.97,100.45231967]
[1767768746931,8.21191523,139.06,138.98,6.4798]
[1767768750318,8.52455446,139.06,138.98,6.4798]
[1767768753735,0.31263923,139.06,138.99,6.4792]
[1767768753932,8.53868609,139.08,138.99,8.21481523]
[1767768757840,8.53868609,139.08,138.99,17.1670349]
[1767768762846,6.80307086,139.08,138.99,17.1670349]
[1767768763037,8.53868609,139.08,138.99,17.1670349]
[1767768766148,6.4756,139.08,139.01,1.73561523]
[1767768766346,6.4756,139.08,139.0,6.4787]
[1767768766545,0.32747086,139.07,139.0,6.4787]
[1767768768451,0.32747086,139.06,138.99,93.97221967]
[1767768768653,0.32747086,139.06,138.99,85.02]
[1767768769551,6.80377086,139.06,138.99,85.02]
[1767768770957,1.73561523,139.05,138.99,85.02]
[1767768771559,2.06308609,139.05,138.99,85.02]
[1767768772159,2.06308609,139.05,138.98,15.43181967]
[1767768772352,2.06308609,139.05,138.98,100.45181967]
[1767768772952,0.32747086,139.04,138.98,100.45181967]
[1767768774362,5.51776879,139.03,138.98,100.45181967]
[1767768774559,5.51776879,139.02,138.98,100.45181967]
[1767768774759,6.879e-05,139.01,138.98,100.45181967]
[1767768774962,0.32747086,139.04,138.98,100.45181967]
[1767768778868,1.73561523,139.03,138.98,93.97221967]
[1767768779167,1.73561523,139.03,138.98,85.02]
[1767768781054,1.73561523,139.03,138.96,8.95221967]
[1767768781055,0.32747086,139.04,138.96,8.95221967]
[1767768781258,2.06494147,139.03,138.95,15.43321967]
[1767768781466,2.06494147,139.03,138.96,85.02]
[1767768782168,2.03663254,139.01,138.96,85.02]
[1767768783363,2.03663254,138.99,138.93,2.4244]
[1767768786669,5.73464853,138.98,138.93,2.4244]
[1767768786868,5.43363122,138.97,138.93,2.4244]
[1767768790470,6.78021731,139.0,138.93,2.4244]
[1767768790665,5.42437271,138.99,138.93,2.4244]
[1767768790866,5.42437271,138.98,138.93,2.4244]
[1767768791072,5.42437271,138.97,138.93,2.4244]
[1767768791271,6.78021731,139.0,138.93,2.4244]
[1767768791474,5.72366328,138.99,138.93,2.4244]
[1767768791770,5.42264597,138.98,138.93,2.4244]
[1767768791961,5.42264597,138.97,138.93,2.4244]
[1767768792165,0.30101731,138.99,138.93,2.4244]
[1767768792460,5.4211062,138.98,138.93,2.4244]
[1767768792664,5.4211062,138.97,138.93,2.4244]
[1767768792873,0.30101731,138.99,138.93,2.4244]
[1767768793074,5.4211062,138.98,138.93,2.4244]
[1767768793370,5.4211062,138.97,138.93,2.4244]
[1767768793571,0.30101731,138.99,138.93,2.4244]
[1767768793761,5.41972548,138.98,138.93,2.4244]
[1767768793965,5.41972548,138.97,138.93,2.4244]
[1767768794173,6.4792,139.0,138.93,2.4244]
[1767768794474,5.41848903,138.99,138.93,2.4244]
[1767768794775,5.41848903,138.98,138.93,2.4244]
[1767768794969,0.30101731,139.01,138.93,2.4244]
[1767768795168,5.41839927,139.0,138.93,2.4244]
[1767768795369,5.41839927,138.99,138.93,2.4244]
[1767768795566,5.41839927,138.98,138.93,2.4244]
[1767768795773,6.77971731,139.01,138.93,2.4244]
[1767768795974,5.71794679,139.0,138.93,2.4244]
[1767768796275,5.41692948,138.99,138.93,2.4244]
[1767768796477,0.30101731,139.0,138.93,2.4244]
[1767768796677,5.41634335,138.99,138.93,2.4244]
[1767768796876,6.77971731,139.01,138.93,2.4244]
[1767768797075,5.41594354,139.0,138.93,2.4244]
[1767768797273,5.41594354,138.99,138.93,2.4244]
[1767768797472,0.30101731,139.0,138.93,2.4244]
[1767768797791,5.71698386,138.99,138.93,87.4844]
[1767768797975,0.30101731,138.99,138.93,87.4844]
[1767768799578,6.77971731,139.01,138.93,93.9664]
[1767768799884,5.44383305,139.0,138.93,93.9664]
[1767768800091,5.44383305,138.99,138.93,93.9664]
[1767768800377,0.30101731,139.01,138.93,93.9664]
[1767768800577,5.44380344,139.0,138.93,93.9664]
[1767768800778,5.44380344,138.99,138.93,93.9664]
[1767768800980,0.30101731,139.01,138.93,93.9664]
[1767768801167,5.44349659,139.0,138.93,93.9664]
[1767768801372,5.44349659,138.99,138.93,93.9664]
[1767768801678,0.30101731,139.01,138.93,93.9664]
[1767768801878,5.44359296,139.0,138.93,93.9664]
[1767768802080,5.44359296,138.99,138.93,93.9664]
[1767768802283,0.30101731,139.01,138.93,93.9664]
[1767768802482,5.44365064,139.0,138.93,93.9664]
[1767768802779,5.44365064,138.99,138.93,93.9664]
[1767768802973,0.30101731,139.01,138.93,93.9664]
[1767768803171,5.44365064,139.0,138.93,93.9664]
[1767768803372,5.44365064,138.99,138.93,93.9664]
[1767768803576,0.30101731,139.01,138.93,93.9664]
[1767768803779,5.44428855,139.0,138.93,93.9664]
[1767768803980,5.44428855,138.99,138.93,93.9664]
[1767768804284,0.30101731,139.01,138.93,93.9664]
[1767768804483,5.44461974,139.0,138.93,93.9664]
[1767768804684,5.44461974,138.99,138.93,93.9664]
[1767768804881,0.30101731,139.01,138.93,93.9664]
[1767768805086,5.44461974,139.0,138.93,93.9664]
[1767768805285,5.44461974,138.99,138.93,93.9664]
[1767768805491,0.30101731,139.01,138.93,93.9664]
[1767768805785,5.44487826,139.0,138.93,93.9664]
[1767768806085,5.44487826,138.99,138.93,93.9664]
[1767768806279,0.30101731,139.01,138.93,93.9664]
[1767768806482,5.44541682,139.0,138.93,93.9664]
[1767768806680,5.44541682,138.99,138.93,93.9664]
[1767768806881,0.30101731,139.01,138.93,93.9664]
[1767768807083,5.44541682,139.0,138.93,93.9664]
[1767768807273,5.44541682,138.99,138.93,93.9664]
[1767768807478,0.30101731,139.01,138.93,93.9664]
[1767768807679,5.44604146,139.0,138.93,93.9664]
[1767768807988,5.44604146,138.99,138.93,93.9664]
[1767768808185,0.30101731,139.01,138.93,93.9664]
[1767768808383,5.44687454,139.0,138.93,93.9664]
[1767768808584,5.44687454,138.99,138.93,93.9664]
[1767768808889,0.30101731,139.01,138.93,93.9664]
[1767768809089,5.44687454,139.0,138.93,93.9664]
[1767768809288,5.44687454,138.99,138.93,93.9664]
[1767768809489,0.30101731,139.01,138.93,93.9664]
[1767768809781,5.44749907,139.0,138.93,93.9664]
[1767768809988,5.44749907,138.99,138.93,93.9664]
[1767768810285,0.30101731,139.01,138.93,93.9664]
[1767768810490,5.44840894,139.0,138.93,93.9664]
[1767768810698,5.74942625,138.99,138.93,93.9664]
[1767768810893,5.74942625,138.98,138.93,8.9064]
[1767768811093,0.30101731,138.98,138.93,2.4244]
[1767768814195,5.45332724,138.97,138.93,2.4244]
[1767768814390,0.30101731,138.98,138.93,2.4244]
[1767768814692,5.45332724,138.97,138.93,2.4244]
[1767768814894,0.30101731,138.98,138.93,2.4244]
[1767768815090,5.45332724,138.97,138.93,2.4244]
[1767768815392,0.30101731,138.98,138.93,2.4244]
[1767768815595,5.45456543,138.97,138.93,2.4244]